Cogmind - Beta 13 @@@ ROGUE MODE // 2024.04.01 @ 19:53:46 Player: CrimsonOccultist Result: Destroyed by S-43 Plague with Heavy Machine Gun Performance ------------- Evolutions (8) 4000 Regions Visited (17) 3400 Robots Destroyed (132) 660 Value Destroyed (3406) 3406 Prototype IDs (29) 580 Alien Tech Used (0) 0 Bonus (1357) 1357 TOTAL SCORE: 13403 Bonus ------- High Alert Combat Kills 39 Follower Combat Kills 647 Entered DSFs 500 Aligned with FarCom 300 Friendly Fire -129 Cogmind --------- Core Integrity 0/1450 Matter 217/300 Energy 62/100 System Corruption 4% Temperature Cool (0) Movement Core (100) Ox1 Location -2/Research Parts ------- > --- POWER (3) -------- (None) > --- PROPULSION (6) --- (None) > --- UTILITY (12) ----- Experimental Actuator Array Makeshift Hacking Suite > --- WEAPON (2) ------- (None) > --- INVENTORY (5) ---- Nuclear Pulse Array Improved Q-thruster Peak State ------------ > --- POWER ------------ Makeshift Power Source Micro Antimatter Reactor > --- PROPULSION ------- Nuclear Pulse Array Nuclear Pulse Array Nuclear Pulse Array > --- UTILITY ---------- Advanced Weight Redist. System Seismic Detector Advanced Shield Generator Point Defense System Hacking Suite Makeshift Hacking Suite > --- WEAPON ----------- Plasma Sword > --- INVENTORY -------- Nuclear Pulse Array Improved Q-thruster [Rating: 80] Favorites ----------- Power Light Nuclear Core Engine Ion Engine Power Core Light Nuclear Core Reactor Micro Antimatter Reactor Propulsion Light Treads Treads Light Treads Flight Unit Improved VTOL Module Utility Hacking Suite Device Advanced Weight Redist. System Storage Large Storage Unit Processor Improved Targeting Computer Hackware Hacking Suite Protection Heavy Armor Plating Weapon Light Assault Rifle Energy Gun Beam Rifle Energy Cannon Advanced Beam Cannon Ballistic Gun Light Assault Rifle Ballistic Cannon Assault Cannon Launcher Grenade Launcher Slashing Weapon Axe Special Melee Weapon Improved Datajack Build | -11 -10 -10 -9 -9 -9 -8 -8 -8 -7 -6 -6 -6 -5 -4 -3 -3 -2 ------- Run | Yrd Mat Min Mat Min Exi Min Mat Sto Fac Fac Low Low Fac Fac Res DSF Res Slots Evolved 16 | . . . 2 . . . 2 . 2 2 . . 2 2 2 . 2 Power 2 | . . . . . . . . . 1 . . . . . 1 . . Propulsion 4 | . . . . . . . . . 1 1 . . 1 1 . . . Utility 10 | . . . 2 . . . 2 . . 1 . . 1 1 1 . 2 Weapon . | . . . . . . . . . . . . . . . . . . Parts Attached 165 | 7 12 4 26 7 4 . 17 19 27 18 6 . . 3 . 4 11 Power 37 | 2 1 . 5 1 . . 1 4 9 7 5 . . . . 1 1 Engine 17 | 2 1 . 5 1 . . . 1 . 1 5 . . . . 1 . Core 19 | . . . . . . . 1 3 9 6 . . . . . . . Reactor 1 | . . . . . . . . . . . . . . . . . 1 Propulsion 32 | 2 3 1 4 2 . . 4 3 2 6 . . . . . 3 2 Treads 17 | 2 3 1 4 2 . . 4 1 . . . . . . . . . Leg . | . . . . . . . . . . . . . . . . . . Wheel . | . . . . . . . . . . . . . . . . . . Hover . | . . . . . . . . . . . . . . . . . . Flight 15 | . . . . . . . . 2 2 6 . . . . . 3 2 Utility 60 | 1 1 . 7 3 2 . 8 10 12 5 1 . . 3 . . 7 Device 23 | . . . 1 . . . . 5 5 3 . . . 2 . . 7 Storage 3 | 1 . . 1 . 1 . . . . . . . . . . . . Processor 11 | . 1 . . 1 1 . 4 1 2 1 . . . . . . . Hackware 9 | . . . . . . . . 2 4 1 1 . . 1 . . . Protection 14 | . . . 5 2 . . 4 2 1 . . . . . . . . Artifact . | . . . . . . . . . . . . . . . . . . Weapon 36 | 2 7 3 10 1 2 . 4 2 4 . . . . . . . 1 Energy Gun 5 | . . . 4 . 1 . . . . . . . . . . . . Energy Cannon 2 | . . . 2 . . . . . . . . . . . . . . Ballistic Gun 15 | 2 5 2 3 1 1 . 1 . . . . . . . . . . Ballistic Cannon 3 | . . . . . . . 3 . . . . . . . . . . Launcher 4 | . 2 1 1 . . . . . . . . . . . . . . Special Weapon . | . . . . . . . . . . . . . . . . . . Impact Weapon . | . . . . . . . . . . . . . . . . . . Slashing Weapon 4 | . . . . . . . . 1 2 . . . . . . . 1 Piercing Weapon . | . . . . . . . . . . . . . . . . . . Special Melee Weapon 3 | . . . . . . . . 1 2 . . . . . . . . Unidentified Prototypes 9 | . . . 1 . 1 . . . 1 1 . . . . . . 5 Parts Lost 55 | . 1 . 8 2 . . 1 3 4 19 1 1 . . . 3 12 Power 12 | . . . 1 . . . . . 2 5 1 . . . . 1 2 Propulsion 12 | . . . 2 1 . . 1 . . 5 . . . . . . 3 Utility 23 | . . . 2 1 . . . 2 2 7 . 1 . . . 2 6 Weapon 8 | . 1 . 3 . . . . 1 . 2 . . . . . . 1 Highest Loss Streak 10 | . 1 . 3 2 . . 1 3 2 6 1 2 . . . 2 10 To Critical Strikes 1 | . . . . . . . . . . 1 . . . . . . . Average Slot Usage (%) 85 | . 95 100 91 97 99 100 89 92 97 92 26 . 17 22 28 25 29 Engine 4 | . 14 14 10 11 11 11 . . . . 2 . 5 5 4 2 2 Core 5 | . . . . . . . 8 9 14 12 4 . . . . . . Treads 13 | . 28 28 21 20 22 22 17 6 . . . . . . . . . Flight 5 | . . . . . . . . 11 23 24 . . . . . 1 9 Device 4 | . . . 5 4 . . . 10 7 12 6 . . 5 9 7 7 Storage 6 | . 14 14 11 11 11 11 9 3 . . . . . . . . . Processor 15 | . 10 14 11 17 27 33 26 15 9 6 6 . 5 5 4 4 . Hackware 6 | . . . . . . . . 11 22 23 5 . 5 6 9 9 6 Protection 5 | . . . 9 10 5 . 9 6 3 . . . . . . . . Energy Gun 2 | . . . 8 11 10 11 1 . . . . . . . . . . Ballistic Gun 7 | . 27 27 11 10 11 11 5 . . . . . . . . . . Ballistic Cannon 3 | . . . . . . . 11 6 . . . . . . . . . Slashing Weapon 1 | . . . . . . . . 5 6 5 . . . . . . . Special Melee Weapon 1 | . . . . . . . . 5 7 4 . . . . . . . Naked Turns . | . . . . . . . . . . . . . . . . . . Heaviest Build 50 | 12 14 15 26 27 31 31 50 50 22 22 10 4 4 11 11 11 23 Greatest Support 48 | 40 40 42 42 40 40 40 40 40 24 33 12 12 3 3 3 39 48 Greatest Overweight (x) 6 | . . . . 6 . . 2 1 1 . . 1 1 3 3 3 2 Average Overweight (x) . | . . . . . . . 1 . . . . . 1 1 3 . . Largest Inventory Capacity 15 | 8 8 8 10 10 15 15 15 15 5 5 5 5 5 5 5 5 5 Average Capacity 9 | 7 8 8 8 10 10 15 15 8 5 5 5 5 5 5 5 5 5 Most Carried 15 | 4 8 8 10 9 10 8 15 15 5 5 2 2 2 2 2 2 3 Average Carried 8 | 2 7 7 6 8 9 8 14 8 4 4 1 2 2 2 2 1 1 Final Capacity 15 | 8 8 8 10 10 15 15 15 5 5 5 5 5 5 5 5 5 5 Final Carried 14 | 4 7 8 8 9 8 8 14 4 5 . 2 2 2 2 2 . 3 Class Distribution -------------------- 68% | Mutant 22% | Hacker-Sprinter 3% | Hacker-Mutant Dominant Class ---------------- Mutant | -10/Materials Mutant | -10/Mines Mutant | -9/Materials Mutant | -9/Mines Mutant | -9/Exiles Mutant | -8/Mines Mutant | -8/Materials Hacker-Sprinter | -8/Storage Hacker-Sprinter | -7/Factory Hacker-Sprinter | -6/Factory Mutant | -6/Lower Caves Mutant | -6/Lower Caves Mutant | -5/Factory Mutant | -4/Factory Hacker-Mutant | -3/Research Hacker-Mutant | -3/DSF Hacker-Mutant | -2/Research Resources | -11 -10 -10 -9 -9 -9 -8 -8 -8 -7 -6 -6 -6 -5 -4 -3 -3 -2 ----------- Run | Yrd Mat Min Mat Min Exi Min Mat Sto Fac Fac Low Low Fac Fac Res DSF Res Matter Collected 2752 | 224 246 141 480 74 . . 572 397 252 315 51 . . . . . . Remotely . | . . . . . . . . . . . . . . . . . . Salvage Created 4122 | . 189 150 1234 171 . . 428 766 722 462 . . . . . . . Parts 301 | . 19 15 85 16 . . 20 43 59 44 . . . . . . . Haulers Intercepted 9 | . . . . . . . . 6 3 . . . . . . . . Recyclers Shooed 4 | . . . . . . . 3 . 1 . . . . . . . . Parts Field Recycled . | . . . . . . . . . . . . . . . . . . Retrieved Matter . | . . . . . . . . . . . . . . . . . . Parts Self-Destructed . | . . . . . . . . . . . . . . . . . . Prevented . | . . . . . . . . . . . . . . . . . . Kills | -11 -10 -10 -9 -9 -9 -8 -8 -8 -7 -6 -6 -6 -5 -4 -3 -3 -2 ------- Run | Yrd Mat Min Mat Min Exi Min Mat Sto Fac Fac Low Low Fac Fac Res DSF Res Combat Hostiles Destroyed 83 | . 12 6 28 4 . . 13 6 7 7 . . . . . . . Melee 17 | . . . 1 . . . . 2 7 7 . . . . . . . Guns 37 | . 7 3 22 4 . . 1 . . . . . . . . . . Cannons 19 | . . . 3 . . . 12 4 . . . . . . . . . AOE 10 | . 5 3 2 . . . . . . . . . . . . . . Classes Destroyed 14 | . 3 1 3 2 . . . 3 2 . . . . . . . . Worker 11 | . . . 3 3 . . . 3 2 . . . . . . . . Builder 8 | . . 1 2 . . . . 2 2 1 . . . . . . . Hauler 9 | . . . . . . . . 6 3 . . . . . . . . Recycler 2 | . . . 1 . . . . 1 . . . . . . . . . Mechanic 1 | . . . . . . . . 1 . . . . . . . . . Operator 4 | . . . . . . . . . 3 1 . . . . . . . Watcher 13 | . 1 . 3 . . . . 2 2 5 . . . . . . . Swarmer 24 | . 9 6 3 . . . . 2 . 4 . . . . . . . Grunt 40 | . 3 . 21 1 . . 10 2 1 2 . . . . . . . Duelist 1 | . . . . 1 . . . . . . . . . . . . . Sentry 9 | . . . 4 . . . 3 1 1 . . . . . . . . Demolisher 2 | . . . . 2 . . . . . . . . . . . . . Hunter 4 | . . . . . . . . 1 3 . . . . . . . . Programmer 3 | . . . . . . . . . 2 1 . . . . . . . Thug 1 | . . 1 . . . . . . . . . . . . . . . Best Kill Streak 5 | . 4 3 5 3 . . 4 3 3 4 . . . . . . . Combat Bots Only 4 | . 3 3 4 2 . . 4 2 2 4 . . . . . . . Max Kills in Single Turn 4 | . 2 4 2 2 . . 1 1 1 1 . . . . . . . Gunslinging 1 | . . . . 1 . . . . . . . . . . . . . Exploded 3 | . 2 3 1 . . . . . . . . . . . . . . Melee 1 | . . . 1 . . . . 1 1 1 . . . . . . . Uniques/NPCs Destroyed . | . . . . . . . . . . . . . . . . . . Combat | -11 -10 -10 -9 -9 -9 -8 -8 -8 -7 -6 -6 -6 -5 -4 -3 -3 -2 -------- Run | Yrd Mat Min Mat Min Exi Min Mat Sto Fac Fac Low Low Fac Fac Res DSF Res Hostile Shots Fired 887 | . 65 15 140 19 . . 91 23 75 203 7 6 3 2 . 70 168 Missed 312 | . 11 5 31 4 . . 27 12 27 97 2 2 . . . 31 63 Damage Taken 9065 | . 491 99 1459 549 . . 985 481 634 1127 98 57 59 47 . 637 2342 Core 3304 | . 30 9 162 193 . . 124 124 178 398 19 29 59 24 . 489 1466 Absorbed by Shields 362 | . . . . . . . . . . 227 . . . . . 40 95 Regen/Repaired (Parts) 690 | . 22 . 4 . . . 265 328 34 37 . . . . . . . Core Remaining (%) 69 | 100 . 84 . . . 11 . 54 74 . . 47 94 97 . 62 . Volleys Fired 263 | . 46 12 122 16 . . 47 20 . . . . . . . . . Largest 2 | . 2 2 2 2 . . 2 2 . . . . . . . . . Hottest 112 | . 50 53 112 112 . . 88 88 . . . . . . . . . Shots Fired 493 | . 90 24 224 30 . . 85 40 . . . . . . . . . Gun 361 | . 82 23 210 30 . . 16 . . . . . . . . . . Cannon 119 | . . . 10 . . . 69 40 . . . . . . . . . Launcher 13 | . 8 1 4 . . . . . . . . . . . . . . Special . | . . . . . . . . . . . . . . . . . . Kinetic 406 | . 82 23 173 9 . . 79 40 . . . . . . . . . Thermal 74 | . . . 47 21 . . 6 . . . . . . . . . . Explosive 13 | . 8 1 4 . . . . . . . . . . . . . . Electromagnetic . | . . . . . . . . . . . . . . . . . . Robot Hit Streak 15 | . 7 4 15 10 . . 12 8 . . . . . . . . . Robot Miss Streak 6 | . 6 3 5 2 . . 2 3 . . . . . . . . . Penetration Max . | . . . . . . . . . . . . . . . . . . Secondary Targets 2 | . . 1 . 1 . . . . . . . . . . . . . Max Gunslinging Chain 1 | . . 1 . 1 . . . . . . . . . . . . . Shots Hit Robots 454 | . 49 13 150 25 . . 59 74 51 32 . . . . . . 1 Core Hits 191 | . 21 13 69 12 . . 24 21 16 14 . . . . . . 1 Critical Kills 2 | . 2 . . . . . . . . . . . . . . . . Critical Parts Destroyed 2 | . 2 . . . . . . . . . . . . . . . . Critical Strikes 26 | . 4 . 2 1 . . 7 3 3 5 . . . . . . 1 Burn 5 | . . . 2 1 . . 2 . . . . . . . . . . Destroy 4 | . 4 . . . . . . . . . . . . . . . . Blast 8 | . . . . . . . 5 3 . . . . . . . . . Sever 9 | . . . . . . . . . 3 5 . . . . . . 1 Melee Attacks 240 | . . . . . . . . 85 79 72 . . . . . . 4 Impact . | . . . . . . . . . . . . . . . . . . Slashing 217 | . . . . . . . . 78 63 72 . . . . . . 4 Piercing . | . . . . . . . . . . . . . . . . . . Sneak Attacks 41 | . . . . . . . . 13 24 4 . . . . . . . Combat Hostiles . | . . . . . . . . . . . . . . . . . . Follow-up Attacks . | . . . . . . . . . . . . . . . . . . Damage Inflicted 10536 | . 646 255 1855 348 . . 1430 2586 1913 1424 . . . . . . 79 Guns 2267 | . 353 91 1364 323 . . 136 . . . . . . . . . . Cannons 2090 | . . . 192 . . . 1225 673 . . . . . . . . . Explosions 697 | . 290 157 250 . . . . . . . . . . . . . . Melee 5294 | . . . . . . . . 1913 1913 1424 . . . . . . 44 Ramming 188 | . 3 7 49 25 . . 69 . . . . . . . . . 35 Kinetic 3531 | . 353 91 1065 59 . . 1290 673 . . . . . . . . . Thermal 826 | . . . 491 264 . . 71 . . . . . . . . . . Explosive 697 | . 290 157 250 . . . . . . . . . . . . . . Electromagnetic . | . . . . . . . . . . . . . . . . . . Impact . | . . . . . . . . . . . . . . . . . . Slashing 5294 | . . . . . . . . 1913 1913 1424 . . . . . . 44 Piercing . | . . . . . . . . . . . . . . . . . . Highest Corruption 8 | . 1 1 . . . . . 8 6 2 2 3 . . . . 4 Average Corruption 2 | . 1 1 . . . . . 4 4 1 2 2 . . . . 2 Corruption Purged . | . . . . . . . . . . . . . . . . . . Corruption Blocked . | . . . . . . . . . . . . . . . . . . Effects 26 | . . 6 . . . . . 3 10 3 3 . . . . . 1 Message Errors 8 | . . 2 . . . . . . 3 . 3 . . . . . . Matter Fused 6 | . . 1 . . . . . 1 2 2 . . . . . . . Heat Flow Errors 3 | . . 1 . . . . . 1 1 . . . . . . . . Energy Discharges 4 | . . 2 . . . . . . 1 1 . . . . . . . Data Loss (minor) 2 | . . . . . . . . . 1 . . . . . . . 1 Data Loss (major) 1 | . . . . . . . . 1 . . . . . . . . . Alerts 2 | . . . . . . . . . 2 . . . . . . . . Overload Shots . | . . . . . . . . . . . . . . . . . . Overflow Damage 683 | . 28 . 9 . . . 10 238 245 153 . . . . . . . Projectiles 24 | . . . . . . . 10 14 . . . . . . . . . Explosions 37 | . 28 . 9 . . . . . . . . . . . . . . Melee 622 | . . . . . . . . 224 245 153 . . . . . . . Knockbacks 21 | . . . . 1 . . 17 3 . . . . . . . . . Impact 3 | . . . . 1 . . 2 . . . . . . . . . . Kinetic 18 | . . . . . . . 15 3 . . . . . . . . . Secondary . | . . . . . . . . . . . . . . . . . . Self-Inflicted Damage 64 | . 10 . 39 . . . . . . . . . . . . . 15 Shots 3 | . 2 . 1 . . . . . . . . . . . . . . Rammed 52 | . 2 2 12 3 . . 23 . . . . . . . . . 10 Targets Rammed 57 | . 2 2 15 5 . . 23 . . . . . . . . . 10 Kicked . | . . . . . . . . . . . . . . . . . . Crushed 5 | . . . 3 2 . . . . . . . . . . . . . Highest Temperature 518 | . 20 120 193 194 . . 518 207 106 74 21 . . . . . . Average Temperature 84 | . 8 52 34 140 . . 150 86 52 27 21 . . . . . . Received Heat Transfer 2048 | . 84 . 771 6 . . 657 18 63 132 66 . 45 9 . 197 . Effects 10 | . . . . . . . 10 . . . . . . . . . . Shutdowns 2 | . . . . . . . 2 . . . . . . . . . . Energy Bleed 3 | . . . . . . . 3 . . . . . . . . . . Interference 1 | . . . . . . . 1 . . . . . . . . . . Matter Decay 2 | . . . . . . . 2 . . . . . . . . . . Damage (major) 2 | . . . . . . . 2 . . . . . . . . . . Siege Activations . | . . . . . . . . . . . . . . . . . . Robots Corrupted . | . . . . . . . . . . . . . . . . . . Combat Hostiles . | . . . . . . . . . . . . . . . . . . Parts Fried . | . . . . . . . . . . . . . . . . . . Impact Corruptions . | . . . . . . . . . . . . . . . . . . Robots Melted . | . . . . . . . . . . . . . . . . . . Combat Hostiles . | . . . . . . . . . . . . . . . . . . Parts Melted 4 | . . 1 1 1 . . 1 . . . . . . . . . . Heat Transferred 2284 | . . . 1211 740 . . 333 . . . . . . . . . . Parts Sabotaged . | . . . . . . . . . . . . . . . . . . Parts Stolen . | . . . . . . . . . . . . . . . . . . Parts Stripped . | . . . . . . . . . . . . . . . . . . Power Chain Reactions . | . . . . . . . . . . . . . . . . . . Alert | -11 -10 -10 -9 -9 -9 -8 -8 -8 -7 -6 -6 -6 -5 -4 -3 -3 -2 ------- Run | Yrd Mat Min Mat Min Exi Min Mat Sto Fac Fac Low Low Fac Fac Res DSF Res Peak Influence 715 | . 293 152 471 259 . . 143 715 450 314 . . 130 73 15 26 35 Initial 320 | . . 67 33 159 . . . 42 320 155 . . 115 63 15 11 . Average 145 | . 123 97 240 175 . . 42 261 330 82 . . 118 49 15 9 17 Maximum Alert Level 3 | . 1 . 2 1 . . . 3 2 1 . . . . . . . Low Security (%) 70 | 100 78 100 43 44 . 100 100 47 . 95 . . 100 100 100 100 100 Level 1 22 | . 21 . 40 55 . . . 25 84 4 . . . . . . . Level 2 5 | . . . 15 . . . . 17 15 . . . . . . . . Level 3 . | . . . . . . . . 8 . . . . . . . . . Level 4 . | . . . . . . . . . . . . . . . . . . Level 5 . | . . . . . . . . . . . . . . . . . . High Security . | . . . . . . . . . . . . . . . . . . Max Security . | . . . . . . . . . . . . . . . . . . Squads Dispatched 44 | . 2 . 6 . . . 6 6 11 10 . . . 2 . 1 . Investigation 26 | . . . 4 . . . 4 5 7 5 . . . 1 . . . Extermination 5 | . . . . . . . . . 2 2 . . . 1 . . . Reinforcement 13 | . 2 . 2 . . . 2 1 2 3 . . . . . 1 . Assault . | . . . . . . . . . . . . . . . . . . Garrison . | . . . . . . . . . . . . . . . . . . Intercept . | . . . . . . . . . . . . . . . . . . Searches Triggered . | . . . . . . . . . . . . . . . . . . Construction Impeded . | . . . . . . . . . . . . . . . . . . Haulers Reinforced . | . . . . . . . . . . . . . . . . . . Active Scanning Responses . | . . . . . . . . . . . . . . . . . . Cargo Convoy Interrupts . | . . . . . . . . . . . . . . . . . . Stealth | -11 -10 -10 -9 -9 -9 -8 -8 -8 -7 -6 -6 -6 -5 -4 -3 -3 -2 --------- Run | Yrd Mat Min Mat Min Exi Min Mat Sto Fac Fac Low Low Fac Fac Res DSF Res Distress Signals 11 | . 3 . 6 . . . 1 . . . . . . . . . 1 Communications Jammed . | . . . . . . . . . . . . . . . . . . Distress Signals . | . . . . . . . . . . . . . . . . . . Times Spotted 223 | . 21 5 50 4 . . 23 22 21 44 8 1 2 1 . 4 17 Peak Tracking Total 17 | . 4 3 6 4 . . 5 4 4 17 4 1 1 1 . 3 10 Tactical Retreats 23 | . 1 . 4 . . . . 2 2 6 2 . 1 1 . 1 3 Traps | -11 -10 -10 -9 -9 -9 -8 -8 -8 -7 -6 -6 -6 -5 -4 -3 -3 -2 ------- Run | Yrd Mat Min Mat Min Exi Min Mat Sto Fac Fac Low Low Fac Fac Res DSF Res Traps Triggered 12 | . 1 1 2 . . . 2 . 3 2 . . . . . . 1 Indirectly . | . . . . . . . . . . . . . . . . . . Trap Hack Attempts . | . . . . . . . . . . . . . . . . . . Triggered . | . . . . . . . . . . . . . . . . . . Disarmed . | . . . . . . . . . . . . . . . . . . Reprogrammed . | . . . . . . . . . . . . . . . . . . Reused . | . . . . . . . . . . . . . . . . . . Traps Extracted . | . . . . . . . . . . . . . . . . . . Installed . | . . . . . . . . . . . . . . . . . . Triggered 1 | . . . . . . . . . . . 1 . . . . . . Machines | -11 -10 -10 -9 -9 -9 -8 -8 -8 -7 -6 -6 -6 -5 -4 -3 -3 -2 ---------- Run | Yrd Mat Min Mat Min Exi Min Mat Sto Fac Fac Low Low Fac Fac Res DSF Res Machines Disabled 6 | . 3 . 1 . . . 1 1 . . . . . . . . . Max in Single Turn 1 | . 1 . 1 . . . 1 . . . . . . . . . . Garrison Access 2 | . . . . . . . . . 2 . . . . . . . . Machines Repaired . | . . . . . . . . . . . . . . . . . . Machines Dismantled . | . . . . . . . . . . . . . . . . . . Machines Sabotaged . | . . . . . . . . . . . . . . . . . . Overloaded Fab Kills . | . . . . . . . . . . . . . . . . . . Hacking | -11 -10 -10 -9 -9 -9 -8 -8 -8 -7 -6 -6 -6 -5 -4 -3 -3 -2 --------- Run | Yrd Mat Min Mat Min Exi Min Mat Sto Fac Fac Low Low Fac Fac Res DSF Res Machines Accessed 75 | . 7 1 7 . . . 10 11 19 14 1 . . 1 1 . 3 Terminals 45 | . 5 . 5 . . . 5 8 10 9 . . . . 1 . 2 Fabricators 5 | . . . . . . . . . 2 2 . . . 1 . . . Repair Stations 8 | . 1 . 1 . . . 2 2 1 1 . . . . . . . Recycling Units 8 | . 1 . 1 . . . 1 1 2 1 . . . . . . 1 Scanalyzers 4 | . . . . . . . 1 . 2 1 . . . . . . . Garrison Access 3 | . . . . . . . 1 . 2 . . . . . . . . Total Hacks 203 | . 22 1 19 . . . 32 37 45 39 1 . . 2 1 . 4 Successful 125 | . 11 1 10 . . . 17 24 27 28 1 . . 2 1 . 3 Failed 78 | . 11 . 9 . . . 15 13 18 11 . . . . . . 1 Catastrophic 11 | . 3 . 1 . . . 2 1 4 . . . . . . . . Database Lockouts . | . . . . . . . . . . . . . . . . . . Manual 29 | . . . . . 2 . . 3 15 9 . . . . . . . Terminals 121 | . 15 . 13 . . . 15 22 25 28 . . . . 1 . 2 Fabricators 12 | . . . . . . . . . 5 5 . . . 2 . . . Repair Stations 36 | . 5 . 3 . . . 9 12 5 2 . . . . . . . Recycling Units 16 | . 2 . 3 . . . 2 3 3 1 . . . . . . 2 Scanalyzers 11 | . . . . . . . 5 . 3 3 . . . . . . . Garrison Access 5 | . . . . . . . 1 . 4 . . . . . . . . Terminal Hacks 66 | . 7 1 6 . . . 5 12 12 19 1 . . . 1 . 2 Record 5 | . . . . . . . . . 1 3 . . . . . . 1 Part Schematic 1 | . . . . . . . . 1 . . . . . . . . . Robot Analysis 3 | . 1 . 1 . . . . 1 . . . . . . . . . Prototype ID Bank 12 | . 3 . 2 . . . 2 3 1 1 . . . . . . . Open Door 4 | . . 1 . . . . . 2 . . 1 . . . . . . Open DSF 6 | . . . . . . . . . 3 1 . . . . 1 . 1 Level Access Points 1 | . . . . . . . . . . 1 . . . . . . . Branch Access Points 5 | . 1 . 1 . . . . 2 . 1 . . . . . . . Emergency Access Points 2 | . . . . . . . 1 . . 1 . . . . . . . Scanalyzer Index 1 | . . . . . . . . . . 1 . . . . . . . Alert Level 7 | . . . 1 . . . . . 4 2 . . . . . . . Unreport Threat 3 | . . . . . . . . . . 3 . . . . . . . Locate Traps 4 | . 2 . . . . . 1 1 . . . . . . . . . Security Status 1 | . . . . . . . . 1 . . . . . . . . . Transport Status 2 | . . . 1 . . . 1 . . . . . . . . . . Extermination Status 1 | . . . . . . . . . . 1 . . . . . . . Reinforcement Status 1 | . . . . . . . . . . 1 . . . . . . . Assault Status 1 | . . . . . . . . . . 1 . . . . . . . Recall Investigation 4 | . . . . . . . . . 2 2 . . . . . . . Recall Reinforcements 1 | . . . . . . . . . 1 . . . . . . . . Zone Layout 1 | . . . . . . . . 1 . . . . . . . . . Fabricator Hacks 9 | . . . . . . . . . 4 3 . . . 2 . . . Network Status 2 | . . . . . . . . . 1 1 . . . . . . . Load Schematic 4 | . . . . . . . . . 2 1 . . . 1 . . . Build 3 | . . . . . . . . . 1 1 . . . 1 . . . Repair Station Hacks 28 | . 4 . 2 . . . 6 11 3 2 . . . . . . . Scan Component 17 | . 3 . 1 . . . 4 6 2 1 . . . . . . . Repair 11 | . 1 . 1 . . . 2 5 1 1 . . . . . . . Recycling Unit Hacks 7 | . . . 2 . . . . 1 2 1 . . . . . . 1 Retrieve Components 7 | . . . 2 . . . . 1 2 1 . . . . . . 1 Scanalyzer 10 | . . . . . . . 5 . 2 3 . . . . . . . Insert Component 4 | . . . . . . . 2 . 1 1 . . . . . . . Analyze 6 | . . . . . . . 3 . 1 2 . . . . . . . Garrison Access Hacks 5 | . . . . . . . 1 . 4 . . . . . . . . Unlock Access 2 | . . . . . . . 1 . 1 . . . . . . . . Seal Access 2 | . . . . . . . . . 2 . . . . . . . . Coupler Status 1 | . . . . . . . . . 1 . . . . . . . . Unauthorized Hacks . | . . . . . . . . . . . . . . . . . . Terminals . | . . . . . . . . . . . . . . . . . . Fabricators . | . . . . . . . . . . . . . . . . . . Repair Stations . | . . . . . . . . . . . . . . . . . . Recycling Units . | . . . . . . . . . . . . . . . . . . Scanalyzers . | . . . . . . . . . . . . . . . . . . Garrison Access . | . . . . . . . . . . . . . . . . . . Data Cores Recovered 3 | . . . . . . . . . 2 1 . . . . . . . Used 2 | . . . . . . . . . 1 1 . . . . . . . Hacking Detections 55 | . 5 . 6 . . . 8 9 13 11 . . . 1 . . 2 Full Trace Events 29 | . 4 . 3 . . . 3 6 7 5 . . . 1 . . . Feedback Events 6 | . . . . . . . . 1 1 4 . . . . . . . Corruption 3 | . . . . . . . . 1 . 2 . . . . . . . Hackware Fried 3 | . . . . . . . . . 1 2 . . . . . . . Feedback Blocked . | . . . . . . . . . . . . . . . . . . Robot Schematics Acquired . | . . . . . . . . . . . . . . . . . . Robots Built . | . . . . . . . . . . . . . . . . . . Authchips . | . . . . . . . . . . . . . . . . . . Time . | . . . . . . . . . . . . . . . . . . Total Robot Build Rating . | . . . . . . . . . . . . . . . . . . Part Schematics Acquired 5 | . . . . . . . 2 1 1 1 . . . . . . . Parts Built 3 | . . . . . . . . . 1 1 . . . 1 . . . Authchips . | . . . . . . . . . . . . . . . . . . Time 185 | . . . . . . . . . 73 76 . . . 36 . . . Total Part Build Rating 11 | . . . . . . . . . 3 5 . . . 3 . . . Parts Repaired 11 | . 1 . 1 . . . 2 5 1 1 . . . . . . . Time 350 | . 26 . 38 . . . 64 184 19 19 . . . . . . . Parts Recycled . | . . . . . . . . . . . . . . . . . . Recycled Matter . | . . . . . . . . . . . . . . . . . . Retrieved Matter . | . . . . . . . . . . . . . . . . . . Retrieved Components 27 | . . . 10 . . . . 10 2 2 . . . . . . 3 Parts Scanalyzed 4 | . . . . . . . 2 . 1 1 . . . . . . . Part Schematics Acquired 4 | . . . . . . . 2 . 1 1 . . . . . . . Parts Damaged . | . . . . . . . . . . . . . . . . . . Bothacking | -11 -10 -10 -9 -9 -9 -8 -8 -8 -7 -6 -6 -6 -5 -4 -3 -3 -2 ------------ Run | Yrd Mat Min Mat Min Exi Min Mat Sto Fac Fac Low Low Fac Fac Res DSF Res Used RIF Installer . | . . . . . . . . . . . . . . . . . . Robots Hacked 8 | . . . . . . . . . 8 . . . . . . . . Non-combat 8 | . . . . . . . . . 8 . . . . . . . . Combat . | . . . . . . . . . . . . . . . . . . Robot Hacks Applied 11 | . . . . . . . . . 11 . . . . . . . . parse_system 2 | . . . . . . . . . 2 . . . . . . . . no_distress 3 | . . . . . . . . . 3 . . . . . . . . find_chute 1 | . . . . . . . . . 1 . . . . . . . . find_fabricator 3 | . . . . . . . . . 3 . . . . . . . . find_recycling 1 | . . . . . . . . . 1 . . . . . . . . check_alert 1 | . . . . . . . . . 1 . . . . . . . . Relay Couplers Released . | . . . . . . . . . . . . . . . . . . Fabnet Peak Effective % . | . . . . . . . . . . . . . . . . . . Robots Rewired . | . . . . . . . . . . . . . . . . . . Allies Hacked . | . . . . . . . . . . . . . . . . . . Hacks Repelled . | . . . . . . . . . . . . . . . . . . Allies | -11 -10 -10 -9 -9 -9 -8 -8 -8 -7 -6 -6 -6 -5 -4 -3 -3 -2 -------- Run | Yrd Mat Min Mat Min Exi Min Mat Sto Fac Fac Low Low Fac Fac Res DSF Res Total Allies 14 | . . . . . . . . 14 . . . . . . . . . Largest Group 10 | . . . . . . . . 10 2 . . . . . . . . Highest-Rated Group 201 | . . . . . . . . 201 47 . . . . . . . . Highest-Rated Ally 31 | . . . . . . . . 31 31 . . . . . . . . Total Orders . | . . . . . . . . . . . . . . . . . . Ally Attacks 155 | . . . . . . . . 144 11 . . . . . . . . Total Damage 2294 | . . . . . . . . 2108 186 . . . . . . . . Kills 23 | . . . . . . . . 21 2 . . . . . . . . Allies Corrupted . | . . . . . . . . . . . . . . . . . . Allies Melted . | . . . . . . . . . . . . . . . . . . Intel | -11 -10 -10 -9 -9 -9 -8 -8 -8 -7 -6 -6 -6 -5 -4 -3 -3 -2 ------- Run | Yrd Mat Min Mat Min Exi Min Mat Sto Fac Fac Low Low Fac Fac Res DSF Res Robot Analysis Total 3 | . 1 . 1 . . . . 1 . . . . . . . . . Derelict Logs Recovered 2 | . . . . 1 . . . . . . 1 . . . . . . Drone Launches . | . . . . . . . . . . . . . . . . . . Drone Recoveries . | . . . . . . . . . . . . . . . . . . Exploration | -11 -10 -10 -9 -9 -9 -8 -8 -8 -7 -6 -6 -6 -5 -4 -3 -3 -2 ------------- Run | Yrd Mat Min Mat Min Exi Min Mat Sto Fac Fac Low Low Fac Fac Res DSF Res Turns Passed 13396 | 114 890 694 2011 649 464 18 3310 1392 1254 1162 301 7 73 642 8 102 305 Spaces Moved 10744 | 65 444 423 916 344 286 12 1178 1151 2351 1972 554 11 74 297 5 92 569 Core 1122 | 2 . . . 6 . . . . . 2 554 11 74 297 5 74 97 Treads 3818 | 63 444 423 916 338 286 12 1178 158 . . . . . . . . . Legs . | . . . . . . . . . . . . . . . . . . Wheels . | . . . . . . . . . . . . . . . . . . Hover . | . . . . . . . . . . . . . . . . . . Flight 5804 | . . . . . . . . 993 2351 1970 . . . . . 18 472 Fastest Speed 26 | 50 160 152 152 160 160 160 160 32 29 26 50 50 100 100 200 34 34 Average Speed 91 | 156 160 153 157 163 160 160 249 60 29 27 50 68 100 108 200 94 40 Slowest Speed 350 | 160 160 160 160 350 160 160 330 245 99 50 50 100 100 200 200 200 150 Overloaded Moves . | . . . . . . . . . . . . . . . . . . Propulsion Burnouts . | . . . . . . . . . . . . . . . . . . Robots Hopped 6 | . . . . . . . . . . 3 . . . . . . 3 Cave-ins Triggered 1 | . . . . . . . . 1 . . . . . . . . . Exploration Rate (%) 46 | 4 81 83 55 68 62 12 85 91 42 45 63 5 2 4 . 72 19 Regions Visited 17 Branch Regions 7 Pre-discovered Areas . | . . . . . . . . . . . . . . . . . . Known Exits Taken 11 | . 1 1 1 1 1 1 1 1 . 1 . 1 . . 1 . . Unknown Exits Taken 5 | 1 . . . . . . . . 1 . 1 . 1 1 . . . Scrap Searched 3 | . . 1 . . . . . . . . 2 . . . . . . Spaces Dug 56 | . . . . . . . . 12 17 27 . . . . . . . Terrain Destroyed 123 | . 32 10 11 . . . 9 17 17 27 . . . . . . . Melee 56 | . . . . . . . . 12 17 27 . . . . . . . Projectile 14 | . . . . . . . 9 5 . . . . . . . . . AOE 53 | . 32 10 11 . . . . . . . . . . . . . . Terrain Rammed . | . . . . . . . . . . . . . . . . . . Walls Destroyed . | . . . . . . . . . . . . . . . . . . Machines Disabled . | . . . . . . . . . . . . . . . . . . Actions | -11 -10 -10 -9 -9 -9 -8 -8 -8 -7 -6 -6 -6 -5 -4 -3 -3 -2 --------- Run | Yrd Mat Min Mat Min Exi Min Mat Sto Fac Fac Low Low Fac Fac Res DSF Res Total 13476 | 74 547 449 1278 400 295 11 1442 1689 2810 2468 577 10 73 615 4 105 629 Wait 1796 | . 32 . 175 24 . . 132 387 305 385 3 . . 316 . 6 31 Move 10716 | 64 443 422 915 343 285 11 1177 1150 2350 1965 553 10 73 296 4 91 564 Hop 5 | . . . . . . . . . . 3 . . . . . . 2 Pick Up 70 | 3 6 4 10 3 . . 20 8 10 4 . . . . . 1 1 Fast Attach 75 | 6 2 . 7 1 2 . 10 8 12 7 4 . . 3 . 3 10 Attach 45 | . 1 . 6 4 1 . 4 9 7 9 2 . . . . 1 1 Detach 32 | . . . 3 1 2 . 7 3 5 3 4 . . . . . 4 Swap 45 | 1 9 4 13 2 1 . 3 2 8 2 . . . . . . . Drop 88 | . 6 5 12 1 4 . 19 17 14 6 . . . . . 2 2 Fire 263 | . 46 12 122 16 . . 47 20 . . . . . . . . . Melee 240 | . . . . . . . . 85 79 72 . . . . . . 4 Ram 10 | . . . . . . . . . . . . . . . . . 10 Kick . | . . . . . . . . . . . . . . . . . . Crush 47 | . 2 2 15 5 . . 23 . . . . . . . . . . Escape Stasis 32 | . . . . . . . . . 20 12 . . . . . . . Rewire 12 | . . . . . . . . . . . 11 . . . . 1 . Trap . | . . . . . . . . . . . . . . . . . . Miscellaneous . | . . . . . . . . . . . . . . . . . . Route ------- -11/Scrapyard -10/Materials (discovered 3 exits: *Mat x2 / *Min) -10/Mines (discovered 2 exits: *Mat x2) -9/Materials (discovered 3 exits: *Mat / *Min x2) -9/Mines -9/Exiles (discovered 2 exits: *Min x2) -8/Mines -8/Materials (discovered 5 exits: *Fac x2 / *Sto x2 / Gar) -8/Storage (discovered 2 exits: *Fac / Rec) -7/Factory -6/Factory (discovered 8 exits: *Fac x4 / *Low x2 / Ext x2) -6/Lower Caves -6/Lower Caves -5/Factory -4/Factory -3/Research -3/DSF -2/Research History --------- Turn | Location | Event 13 | -11/Scrapyard | Discovered new exit (range 14) 115 | -11/Scrapyard | Entered Materials 306 | -10/Materials | Build established: Mutant 562 | -10/Materials | Discovered new exit (range 10) 575 | -10/Materials | Identified exit to Materials 586 | -10/Materials | Identified exit to Mines 690 | -10/Materials | Discovered exit to Materials (range 15) 990 | -10/Materials | Repaired Lgt. Assault Rifle 1005 | -10/Materials | Entered Mines 1103 | -10/Mines | Discovered exit to Materials (range 7) 1117 | -10/Mines | Met a Derelict who couldn't figure out how to use a Trap Extractor 1348 | -10/Mines | Found a hidden stash of uninstalled traps 1357 | -10/Mines | Discovered exit to Materials (range 6) 1446 | -10/Mines | A weapon hastily lodged in a ceiling crevice suddenly fell to the ground 1567 | -10/Mines | Received a Rocket Launcher from a helpful Derelict 1699 | -10/Mines | Entered Materials 1699 | -9/Materials | Evolved 2 slots: Utility x2 1832 | -9/Materials | Identified exit to Mines 1897 | -9/Materials | Repaired Melee Analysis Suite 2393 | -9/Materials | Lost 3 parts (1n2w) 2712 | -9/Materials | Discovered new exit (range 13) 2925 | -9/Materials | Identified exit to Materials 3190 | -9/Materials | Lost 3 parts (1p1u1w) 3710 | -9/Materials | Entered Mines 3711 | -9/Mines | Assembled infested the area 3751 | -9/Mines | Met a Derelict bent on vengeance 3784 | -9/Mines | Core integrity fell below 50% 3789 | -9/Mines | Core integrity fell below 20% 3843 | -9/Mines | Learned location of 1 exit from Materials 3897 | -9/Mines | Joined a pair of Derelicts in attacking an 0b10 outpost 4353 | -9/Mines | Discovered new exit (range 5) 4358 | -9/Mines | Identified exit to Exiles 4359 | -9/Mines | Entered Exiles 4385 | -9/Exiles | Discovered new exit (range 15) 4406 | -9/Exiles | Identified exit to Mines 4441 | -9/Exiles | Met 8R-AWN 4470 | -9/Exiles | Met EX-HEX 4523 | -9/Exiles | Met EX-BIN 4542 | -9/Exiles | Aligned with FarCom system 4543 | -9/Exiles | Given EX-Vault access code 4580 | -9/Exiles | Opened EX-Vault 4605 | -9/Exiles | Found Prototype Processor 4605 | -9/Exiles | Identified Modified TNC 4642 | -9/Exiles | Warned to stay clear of 0b10 Research branches 4696 | -9/Exiles | Met EX-DEC 4801 | -9/Exiles | Discovered exit to Mines (range 14) 4823 | -9/Exiles | Left Exiles lab with Modified TNC 4823 | -9/Exiles | Entered Mines 4830 | -8/Mines | Discovered exit to Materials (range 6) 4841 | -8/Mines | Entered Materials 4841 | -8/Materials | Evolved 2 slots: Utility x2 4842 | -8/Materials | Identified exit to Factory 5577 | -8/Materials | Met 7R-MNS 5626 | -8/Materials | Repaired Lgt. Treads 5747 | -8/Materials | Discovered new exit (range 6) 5771 | -8/Materials | Identified exit to Storage 6761 | -8/Materials | Repaired Hvy. Armor Plating 7783 | -8/Materials | Discovered exit to Factory (range 15) 7884 | -8/Materials | Discovered exit to Storage (range 7) 7967 | -8/Materials | Identified exit to Garrison 8151 | -8/Materials | Entered Storage 8274 | -8/Storage | Repaired Hvy. Armor Plating 8362 | -8/Storage | Repaired Arm. Treads 8459 | -8/Storage | Assisted by bots powering up and referring to "LRC-V3" 8681 | -8/Storage | Identified exit to Recycling 8758 | -8/Storage | Lost 6 allies 9039 | -8/Storage | Build established: Hacker-Sprinter 9101 | -8/Storage | Met a pair of Derelict thieves 9198 | -8/Storage | Lost 5 allies 9200 | -8/Storage | Discovered exit to Factory (range 12) 9264 | -8/Storage | Repaired Lgt. Nuclear Core 9297 | -8/Storage | Repaired Weight Redist. System 9337 | -8/Storage | Repaired Lgt. Nuclear Core 9473 | -8/Storage | Crushed by falling debris 9504 | -8/Storage | Lost 3 parts (2u1w) 9543 | -8/Storage | Entered Factory 9543 | -7/Factory | Accompanied by 2 allies 9543 | -7/Factory | Evolved 2 slots: Power x1, Propulsion x1 9547 | -7/Factory | Identified exit to DSF 9802 | -7/Factory | Fabricated Hacking Suite? 9902 | -7/Factory | Repaired Lgt. Nuclear Core 10471 | -7/Factory | Hacking Suite fried by hacking feedback 10676 | -7/Factory | Discovered new exit (range 14) 10752 | -7/Factory | Identified exit to Garrison 10797 | -7/Factory | Entered another Factory area 10797 | -6/Factory | Evolved 2 slots: Propulsion x1, Utility x1 10899 | -6/Factory | Repaired Lgt. Nuclear Core 11183 | -6/Factory | Spotted B-75 Beast 11581 | -6/Factory | Discovered new exit (range 16) 11612 | -6/Factory | Identified exit to Lower Caves 11612 | -6/Factory | Identified exit to Extension 11612 | -6/Factory | Identified exit to Factory 11635 | -6/Factory | Hacking Suite fried by hacking feedback 11672 | -6/Factory | Hacking Suite fried by hacking feedback 11758 | -6/Factory | Fabricated Cld. Cesium-ion Thruster? 11812 | -6/Factory | Lost 5 parts (1p2n1u1w) 11923 | -6/Factory | Lost 6 parts (1p1n3u1w) 11959 | -6/Factory | Entered Lower Caves 11990 | -6/Lower Caves | Lost 5 parts (2p2n1u) 12162 | -6/Lower Caves | Encountered a Warlord checkpoint 12234 | -6/Lower Caves | Build established: Mutant 12252 | -6/Lower Caves | Discovered new exit (range 8) 12259 | -6/Lower Caves | Learned Factory emergency access door positions 12260 | -6/Lower Caves | Entered another Lower Caves area 12260 | -6/Lower Caves | Discovered exit to Factory (range 11) 12267 | -6/Lower Caves | Core integrity fell below 50% 12267 | -6/Lower Caves | Entered Factory 12267 | -5/Factory | Evolved 2 slots: Propulsion x1, Utility x1 12288 | -5/Factory | Discovered new exit (range 14) 12340 | -5/Factory | Entered another Factory area 12340 | -4/Factory | Evolved 2 slots: Propulsion x1, Utility x1 12424 | -4/Factory | Fabricated Hacking Suite? 12948 | -4/Factory | Discovered new exit (range 16) 12982 | -4/Factory | Entered Research 12982 | -3/Research | Evolved 2 slots: Power x1, Utility x1 12990 | -3/Research | Identified exit to DSF 12990 | -3/Research | Entered DSF 13037 | -3/DSF | Additional patrols routed to DSF 13070 | -3/DSF | Discovered new exit (range 11) 13092 | -3/DSF | Entered Research 13092 | -2/Research | Evolved 2 slots: Utility x2 13106 | -2/Research | Build established: Hacker-Mutant 13244 | -2/Research | Found Prototype Device 13244 | -2/Research | Identified Exp. Thermal Shield 13353 | -2/Research | Core integrity fell below 50% 13357 | -2/Research | Found Prototype Device 13357 | -2/Research | Identified Exp. Actuator Array 13358 | -2/Research | Lost 10 parts (2p3n5u) 13383 | -2/Research | Core integrity fell below 20% 13397 | -2/Research | Destroyed by S-43 Plague with Heavy Machine Gun Last Messages --------------- 13314_ S-43 Plague destroyed. 13315_ Nuclear Pulse Array destroyed. 13321_ Adv. Shield Generator destroyed. 13326_ Slammed into S-43 Plague. 13327_ Adv. Weight Redist. System destroyed. 13328_ Slammed into S-43 Plague. 13330_ Destabilizing: Core damaged (-58). 13331_ Slammed into S-43 Plague. 13357_ Acquired Prototype Device. 13357_ Identified Exp. Actuator Array. 13360_ Plasma Sword destroyed. 13366_ S-43 Plague destroyed. 13371_ Acquired Imp. Cloaking Device. 13382_ Particle Synthesizer disabled. 13390_ Slug penetrates Wall. 13392_ Penetrated by Slug. 13394_ Imp. Cloaking Device destroyed. 13395_ Penetrated by Slug. 13395_ Slug penetrates T-07 Excavator. [Achievement: 10k Club] Map ----- +----------------------------------------------------+ | ?????????????????????????????????????????????????? | | ?????????????????????????????????????????????????? | | ?????????????????????????????????????????????????? | | ?????????????????????????????????????????????????? | | ?????????????????????????????????????????????????? | | ?????????????????????????????????????????????????? | | ?????????????????????????????????????????????????? | | ?????????????????????????????????????????????????? | | ?????????????????????????????????????????????????? | | ?????????????????????????????????????????????????? | | ?????????????????????????????????????????????????? | | ?????????????????????????????????????????????????? | | ???????????##########????????????????????????????? | | ???????????# #????????????????????????????? | | ???????????# #????????????????????????????? | | ???????????# """ ############?????????????????? | | ???????????# "" # ??????????????????? | | ???????????# """ # ???????????????????? | | ???????????# "" # ?????????????????????? | | ???????????# """ # ??????????????????????? | | ??????????p# ps # #??#+####???????????????? | | ???????????# # #? ""???????????????? | | ??? #############/### #? ""S"??????????????? | | ? p ss # "" "" #??????????? | | ? p t # #??????????? | | ? @ #??????????? | | ?? hh # ! #??????????? | | ??#+### ######+######## #??????????? | | ??????# ???# % #???? """"""" #??????????? | | ??????# ????# #???? """""""?? ???????????? | | ??????#??????# """ #?????"""""????????????????? | | ?????????????# "Y" #????? ????????????????? | | ?????????????# " " #?????? ?????????????????? | | ?????????????# #??????###?????????????????? | | ??????? ??# #??????????????????????????? | | ??????# ??# #??????????????????????????? | | ??????# ??# #??????????????????????????? | | ??????# #?###+######??????????????????????????? | | ??????# #???# #???????????????????????????????? | | ??????# #???# #???????????????????????????????? | | ??????# #???# #???????????????????????????????? | | ??????# #???# #???????????????????????????????? | | ??????# #???# #???????????????????????????????? | | #?????# #???# #???????????????????????????????? | | #?????# #???# #???????????????????????????????? | | #?????# #???# #????????? #????????????????????? | | #?????# ##### ##?????? #????????????????????? | | #?????# +???? ! =##???????????????????? | | #?????# #??= #???????????????????? | | #?????# # #????????????????????? | +----------------------------------------------------+ Best States ------------- Heat Dissipation 49 Coolant Potential 50 Energy Generation 35 Energy Capacity 360 Matter Stores 300 Matter Capacity 300 Sight Range 16 Terrain Scan Density 110 ECM Strength 2 Additional Mass Support 9 Corruption Block 8 Armor Coverage 600 Point Defense Rating 80 Evasion (%) 64 Targeting Accuracy 12 Melee Accuracy 6 Core Analysis 6 Recoil Reduction 2 Offensive Hacking 40 Item Schematics ----------------- VTOL Module | -8/Materials | Scanalyzed Hacking Suite | -8/Materials | Scanalyzed Actuator Array | -8/Storage | Hacked Imp. VTOL Module | -7/Factory | Scanalyzed Cld. Cesium-ion Thruster | -6/Factory | Scanalyzed Robot Schematics ------------------ None Fabricated ------------ Hacking Suite | x1 | -7/Factory Cld. Cesium-ion Thruster | x1 | -6/Factory Hacking Suite | x1 | -4/Factory Alien Tech Used ----------------- None Achievements -------------- 10k Club Dangerous Findings Fist Fight Knowing Is Half The Battle Part-time Excavator Watch This! Challenges ------------ None Game ------ Seed ZioniteCombatNeutralizer Manual? 0 Play Time 02:42:03 Cumulative 10.4 hours Start 2024.04.01 @ 17:02:32 End 2024.04.01 @ 19:53:46 Sessions 3 Manual Loads 0 Difficulty Rogue Special Mode None Game No. 11 Rogue 11 Adventurer 0 Explorer 0 Win Type - Total 0 Types 0/0/0/0/0/0/0/0/0 Lore% 6 Gallery% 14 Achievement% 16 Wizard Run 0 Options --------- Layout 0 ASCII 0 Keyboard 1 Movement Numpad Keybinds 0 Fullscreen 1 Font 18/SmallcapsGlow Map View 76x50 Zoom Use 0% Tactical HUD 1 Map Filters NONE Filters NONE Steam 1 RUN: 8d2467c0-da03-4baa-827e-a6982ebd88f2